[Event "Late-Titled-Tuesday-Blitz-September-05-2023"]
[Site "Chess.com"]
[Date "2023.09.05"]
[Round "3"]
[White "Beca95"]
[Black "Michalczak"]
[Result "1-0"]
[WhiteElo "2965"]
[BlackElo "2505"]
[TimeControl "180+1"]
[EndTime "14:29:33 PDT"]
[Termination "Beca95 won by resignation"]

1. e4 {[%clk 0:03:00.9]} 1... e5 {[%clk 0:02:59.9]} 2. Nf3 {[%clk 0:03:01.3]}
2... Nc6 {[%clk 0:03:00.4]} 3. Nc3 {[%clk 0:03:01.3]} 3... Nf6 {[%clk
0:03:00.4]} 4. Bb5 {[%clk 0:03:00.9]} 4... Nd4 {[%clk 0:02:59.9]} 5. O-O {[%clk
0:03:01.2]} 5... Bc5 {[%clk 0:02:57.8]} 6. Bd3 {[%clk 0:02:58.7]} 6... d6 {[%clk
0:02:56.7]} 7. Nxd4 {[%clk 0:02:58.2]} 7... Bxd4 {[%clk 0:02:56.9]} 8. Ne2
{[%clk 0:02:58.3]} 8... Bb6 {[%clk 0:02:57.1]} 9. c3 {[%clk 0:02:58.3]} 9... O-O
{[%clk 0:02:56.2]} 10. Bc2 {[%clk 0:02:58.4]} 10... c6 {[%clk 0:02:56.1]} 11. d4
{[%clk 0:02:58]} 11... Qc7 {[%clk 0:02:56.3]} 12. Kh1 {[%clk 0:02:57.6]} 12...
h6 {[%clk 0:02:55.6]} 13. f4 {[%clk 0:02:57.5]} 13... Nd7 {[%clk 0:02:44.1]} 14.
Ng3 {[%clk 0:02:54.9]} 14... exd4 {[%clk 0:02:37.4]} 15. cxd4 {[%clk 0:02:53.9]}
15... c5 {[%clk 0:02:32.3]} 16. d5 {[%clk 0:02:32.1]} 16... Nf6 {[%clk
0:02:24.4]} 17. f5 {[%clk 0:02:29.7]} 17... c4 {[%clk 0:02:11.2]} 18. Bf4 {[%clk
0:02:28.7]} 18... Re8 {[%clk 0:02:10.2]} 19. Qd2 {[%clk 0:02:24.8]} 19... Kh7
{[%clk 0:02:08.4]} 20. h3 {[%clk 0:02:20.2]} 20... Bd7 {[%clk 0:02:08.2]} 21. a4
{[%clk 0:02:18.3]} 21... a6 {[%clk 0:02:04.9]} 22. Rf3 {[%clk 0:02:12.8]} 22...
Bc5 {[%clk 0:02:03.9]} 23. a5 {[%clk 0:02:04.1]} 23... b5 {[%clk 0:02:03]} 24.
axb6 {[%clk 0:02:03.9]} 24... Qxb6 {[%clk 0:02:03.3]} 25. Ra2 {[%clk 0:02:02.6]}
25... Bd4 {[%clk 0:02:00.8]} 26. Ne2 {[%clk 0:02:02.2]} 26... Be5 {[%clk
0:02:00.8]} 27. Be3 {[%clk 0:02:01.6]} 27... Qc7 {[%clk 0:01:57.9]} 28. Nd4
{[%clk 0:01:58.9]} 28... Reb8 {[%clk 0:01:46.9]} 29. Bf2 {[%clk 0:01:58.1]}
29... a5 {[%clk 0:01:37.2]} 30. Rc3 {[%clk 0:01:57.6]} 30... Rb4 {[%clk
0:01:31.8]} 31. Nf3 {[%clk 0:01:56.9]} 31... Bxc3 {[%clk 0:01:31.1]} 32. bxc3
{[%clk 0:01:57.8]} 32... Rb3 {[%clk 0:01:28.3]} 33. Bd4 {[%clk 0:01:57.7]} 33...
a4 {[%clk 0:01:22.4]} 34. g4 {[%clk 0:01:43.8]} 34... Rab8 {[%clk 0:01:19.1]}
35. g5 {[%clk 0:01:43.7]} 35... Nh5 {[%clk 0:01:19.6]} 36. e5 {[%clk 0:01:42.6]}
36... Ng3+ {[%clk 0:01:07.7]} 37. Kg2 {[%clk 0:01:42.1]} 37... Nxf5 {[%clk
0:01:08.6]} 38. gxh6 {[%clk 0:01:32.8]} 38... gxh6 {[%clk 0:01:02.3]} 39. Nh4
{[%clk 0:01:24.1]} 39... Rg8+ {[%clk 0:01:01.7]} 40. Kf2 {[%clk 0:01:13.5]}
40... Qc8 {[%clk 0:00:54.5]} 41. Qf4 {[%clk 0:01:11.3]} 41... Rg5 {[%clk
0:00:54.6]} 42. exd6 {[%clk 0:00:30.3]} 42... Kg8 {[%clk 0:00:53.9]} 43. Nxf5
{[%clk 0:00:25.4]} 43... Bxf5 {[%clk 0:00:47.4]} 44. Qe5 {[%clk 0:00:24.2]}
44... Kh7 {[%clk 0:00:47.3]} 45. Qf6 {[%clk 0:00:20.5]} 45... Rb7 {[%clk
0:00:38.2]} 46. d7 {[%clk 0:00:20.3]} 46... Qxd7 {[%clk 0:00:29.1]} 47. Qh8+
{[%clk 0:00:16.3]} 47... Kg6 {[%clk 0:00:29.6]} 48. Qg7+ {[%clk 0:00:15.9]}
48... Kh5 {[%clk 0:00:30.2]} 49. Bd1+ {[%clk 0:00:15.9]} 49... Bg4 {[%clk
0:00:17]} 50. hxg4+ {[%clk 0:00:15.7]} 50... Rxg4 {[%clk 0:00:17.7]} 51. Qxg4+
{[%clk 0:00:11.8]} 51... Qxg4 {[%clk 0:00:18.6]} 52. Bxg4+ {[%clk 0:00:12.2]}
52... Kxg4 {[%clk 0:00:19.5]} 53. Rxa4 {[%clk 0:00:12.1]} 53... Rb2+ {[%clk
0:00:18.7]} 54. Ke3 {[%clk 0:00:11.2]} 54... h5 {[%clk 0:00:18]} 55. Rxc4 {[%clk
0:00:10.8]} 55... h4 {[%clk 0:00:18.9]} 56. Bf6+ {[%clk 0:00:10.4]} 56... Kf5
{[%clk 0:00:18]} 57. Bxh4 {[%clk 0:00:10.9]} 57... f6 {[%clk 0:00:17.3]} 58. d6
{[%clk 0:00:10.3]} 58... Ke6 {[%clk 0:00:16.4]} 59. Rd4 {[%clk 0:00:11]} 59...
Rb7 {[%clk 0:00:15.2]} 60. d7 {[%clk 0:00:11.3]} 60... Rxd7 {[%clk 0:00:16.1]}
61. Rxd7 {[%clk 0:00:11.1]} 61... Kxd7 {[%clk 0:00:17]} 62. Bxf6 {[%clk
0:00:11.1]} 62... Kc6 {[%clk 0:00:17.9]} 63. Bd4 {[%clk 0:00:11]} 1-0

[Event "Late-Titled-Tuesday-Blitz-September-05-2023"]
[Site "Chess.com"]
[Date "2023.09.05"]
[Round "3"]
[White "Guzman70"]
[Black "ChEsper99"]
[Result "1-0"]
[WhiteElo "2360"]
[BlackElo "2142"]
[TimeControl "180+1"]
[EndTime "14:29:37 PDT"]
[Termination "Guzman70 won on time"]

1. Nf3 {[%clk 0:03:00.9]} 1... d5 {[%clk 0:02:59.4]} 2. d4 {[%clk 0:03:00]} 2...
c6 {[%clk 0:02:54.7]} 3. Bf4 {[%clk 0:02:59.2]} 3... Nf6 {[%clk 0:02:50.2]} 4.
e3 {[%clk 0:02:50.8]} 4... Bf5 {[%clk 0:02:50.6]} 5. c4 {[%clk 0:02:50.4]} 5...
e6 {[%clk 0:02:49.2]} 6. Nc3 {[%clk 0:02:50.5]} 6... Bd6 {[%clk 0:02:48.8]} 7.
Bg3 {[%clk 0:02:43.2]} 7... O-O {[%clk 0:02:44.4]} 8. Qb3 {[%clk 0:02:42.2]}
8... Bxg3 {[%clk 0:02:18]} 9. hxg3 {[%clk 0:02:43.1]} 9... Qb6 {[%clk
0:02:14.6]} 10. c5 {[%clk 0:02:42.3]} 10... Qc7 {[%clk 0:02:13]} 11. Qa4 {[%clk
0:02:36.7]} 11... Nbd7 {[%clk 0:02:06.5]} 12. b4 {[%clk 0:02:36.5]} 12... b5
{[%clk 0:01:59.9]} 13. Qd1 {[%clk 0:02:30.5]} 13... e5 {[%clk 0:01:59.1]} 14.
Be2 {[%clk 0:02:26.5]} 14... Rfe8 {[%clk 0:01:47.5]} 15. O-O {[%clk 0:02:25.9]}
15... Ne4 {[%clk 0:01:34.9]} 16. Nxe4 {[%clk 0:02:19.4]} 16... Bxe4 {[%clk
0:01:35.8]} 17. a4 {[%clk 0:02:13.3]} 17... a6 {[%clk 0:01:30.2]} 18. dxe5
{[%clk 0:02:02]} 18... Nxe5 {[%clk 0:01:12.9]} 19. Qd4 {[%clk 0:02:01.7]} 19...
Nxf3+ {[%clk 0:01:06.9]} 20. gxf3 {[%clk 0:02:00.9]} 20... Bg6 {[%clk
0:01:03.8]} 21. axb5 {[%clk 0:01:57.4]} 21... axb5 {[%clk 0:01:03.7]} 22. Rxa8
{[%clk 0:01:57.4]} 22... Rxa8 {[%clk 0:01:04.5]} 23. Ra1 {[%clk 0:01:57.1]}
23... Ra7 {[%clk 0:01:00.1]} 24. Rxa7 {[%clk 0:01:49.7]} 24... Qxa7 {[%clk
0:01:01]} 25. Qe5 {[%clk 0:01:47.5]} 25... Qa8 {[%clk 0:00:42.6]} 26. f4 {[%clk
0:01:37.5]} 26... f6 {[%clk 0:00:43]} 27. Qe6+ {[%clk 0:01:20.7]} 27... Bf7
{[%clk 0:00:43.2]} 28. Qd7 {[%clk 0:01:08.7]} 28... Qe8 {[%clk 0:00:37.6]} 29.
Qxe8+ {[%clk 0:01:06.7]} 29... Bxe8 {[%clk 0:00:38.5]} 30. Bg4 {[%clk
0:01:00.7]} 30... Kf7 {[%clk 0:00:36.4]} 31. Kf1 {[%clk 0:00:59]} 31... Ke7
{[%clk 0:00:35.8]} 32. Ke2 {[%clk 0:00:58.4]} 32... Bg6 {[%clk 0:00:35.6]} 33.
Kd2 {[%clk 0:00:54.3]} 33... Be4 {[%clk 0:00:32.9]} 34. Kc3 {[%clk 0:00:51.4]}
34... Bb1 {[%clk 0:00:26.1]} 35. Kd4 {[%clk 0:00:50.8]} 35... g6 {[%clk
0:00:20.6]} 36. Bc8 {[%clk 0:00:47.1]} 36... Kd8 {[%clk 0:00:19.2]} 37. Be6
{[%clk 0:00:45]} 37... Ke7 {[%clk 0:00:19.1]} 38. Bg8 {[%clk 0:00:45.2]} 38...
h6 {[%clk 0:00:19.2]} 39. f3 {[%clk 0:00:40.2]} 39... Bf5 {[%clk 0:00:19.2]} 40.
g4 {[%clk 0:00:37.9]} 40... Be6 {[%clk 0:00:12.8]} 41. Bh7 {[%clk 0:00:36.7]}
41... Kf7 {[%clk 0:00:12.3]} 42. f5 {[%clk 0:00:26.5]} 42... gxf5 {[%clk
0:00:10.2]} 43. gxf5 {[%clk 0:00:26.8]} 43... Bd7 {[%clk 0:00:08.1]} 44. e4
{[%clk 0:00:26.2]} 44... dxe4 {[%clk 0:00:07]} 45. fxe4 {[%clk 0:00:26.9]} 45...
Ke7 {[%clk 0:00:05.3]} 46. Bg6 {[%clk 0:00:25.2]} 46... Be8 {[%clk 0:00:04.9]}
47. Bxe8 {[%clk 0:00:14]} 47... Kxe8 {[%clk 0:00:05.8]} 48. e5 {[%clk
0:00:14.4]} 48... fxe5+ {[%clk 0:00:05.8]} 49. Kxe5 {[%clk 0:00:15.3]} 49... Ke7
{[%clk 0:00:05.8]} 50. f6+ {[%clk 0:00:12.8]} 50... Kf7 {[%clk 0:00:06.2]} 51.
Kd6 {[%clk 0:00:13.2]} 51... Kxf6 {[%clk 0:00:02.9]} 52. Kxc6 {[%clk 0:00:14.1]}
52... h5 {[%clk 0:00:03.2]} 53. Kxb5 {[%clk 0:00:10.3]} 53... h4 {[%clk
0:00:04.1]} 54. c6 {[%clk 0:00:10.8]} 54... h3 {[%clk 0:00:01.7]} 55. c7 {[%clk
0:00:11.7]} 55... h2 {[%clk 0:00:02.3]} 56. c8=Q {[%clk 0:00:12.3]} 56... h1=Q
{[%clk 0:00:02.8]} 57. Qd8+ {[%clk 0:00:12.2]} 57... Kf7 {[%clk 0:00:02.6]} 58.
Qd7+ {[%clk 0:00:11.4]} 58... Kf6 {[%clk 0:00:02.6]} 59. Qc6+ {[%clk 0:00:11.7]}
1-0

[Event "Late-Titled-Tuesday-Blitz-September-05-2023"]
[Site "Chess.com"]
[Date "2023.09.05"]
[Round "3"]
[White "Tsyhanchuk_Stanislav"]
[Black "Mikhail_Golubev"]
[Result "1-0"]
[WhiteElo "2434"]
[BlackElo "2584"]
[TimeControl "180+1"]
[EndTime "14:29:44 PDT"]
[Termination "Tsyhanchuk_Stanislav won on time"]

1. e4 {[%clk 0:03:00.9]} 1... c5 {[%clk 0:02:59.4]} 2. c4 {[%clk 0:02:59.6]}
2... Nc6 {[%clk 0:02:57.9]} 3. Nc3 {[%clk 0:03:00]} 3... g6 {[%clk 0:02:57.2]}
4. g3 {[%clk 0:02:59.9]} 4... Bg7 {[%clk 0:02:57.5]} 5. Bg2 {[%clk 0:03:00.5]}
5... d6 {[%clk 0:02:55.8]} 6. a3 {[%clk 0:03:00.7]} 6... Nf6 {[%clk 0:02:48.1]}
7. Rb1 {[%clk 0:03:00.3]} 7... a5 {[%clk 0:02:45.9]} 8. Nge2 {[%clk 0:03:00.6]}
8... O-O {[%clk 0:02:45.4]} 9. O-O {[%clk 0:03:00.8]} 9... Bd7 {[%clk 0:02:26]}
10. h3 {[%clk 0:02:57]} 10... Qc8 {[%clk 0:02:22.4]} 11. Kh2 {[%clk 0:02:57.4]}
11... Nd4 {[%clk 0:02:19.3]} 12. d3 {[%clk 0:02:49.7]} 12... Nxe2 {[%clk
0:02:00]} 13. Qxe2 {[%clk 0:02:34.2]} 13... a4 {[%clk 0:01:59.8]} 14. f4 {[%clk
0:02:31.7]} 14... Bc6 {[%clk 0:01:56.4]} 15. Nd5 {[%clk 0:02:25.7]} 15... Bxd5
{[%clk 0:01:46.2]} 16. cxd5 {[%clk 0:02:17]} 16... e6 {[%clk 0:01:45.3]} 17.
dxe6 {[%clk 0:02:16.6]} 17... fxe6 {[%clk 0:01:39.6]} 18. Bd2 {[%clk 0:02:15.8]}
18... Qd7 {[%clk 0:01:34.5]} 19. Bc3 {[%clk 0:01:55.5]} 19... Rad8 {[%clk
0:01:31.5]} 20. Rbd1 {[%clk 0:01:37.2]} 20... d5 {[%clk 0:01:28.1]} 21. exd5
{[%clk 0:01:29.3]} 21... exd5 {[%clk 0:01:23.1]} 22. Be5 {[%clk 0:01:29.7]}
22... d4 {[%clk 0:01:13.3]} 23. Qc2 {[%clk 0:01:22.7]} 23... b6 {[%clk 0:00:42]}
24. Rf2 {[%clk 0:01:01.1]} 24... Nd5 {[%clk 0:00:36.2]} 25. Bxd5+ {[%clk
0:00:54.2]} 25... Qxd5 {[%clk 0:00:35.6]} 26. Bxg7 {[%clk 0:00:54.7]} 26... Kxg7
{[%clk 0:00:35.3]} 27. Qxa4 {[%clk 0:00:55.3]} 27... Rde8 {[%clk 0:00:22.8]} 28.
Qa7+ {[%clk 0:00:49.9]} 28... Rf7 {[%clk 0:00:22.3]} 29. Qxb6 {[%clk 0:00:49.6]}
29... Re3 {[%clk 0:00:20.8]} 30. Rc1 {[%clk 0:00:35.6]} 30... Rxd3 {[%clk
0:00:13.4]} 31. Qxc5 {[%clk 0:00:34.8]} 31... Qe4 {[%clk 0:00:13.7]} 32. Rcc2
{[%clk 0:00:18.6]} 32... Rb7 {[%clk 0:00:11.1]} 33. Rce2 {[%clk 0:00:17.9]}
33... Re3 {[%clk 0:00:11.1]} 34. Rxe3 {[%clk 0:00:17.8]} 34... Qxe3 {[%clk
0:00:09.8]} 35. Rg2 {[%clk 0:00:15.1]} 35... Rb3 {[%clk 0:00:09]} 36. Qe5+
{[%clk 0:00:14.4]} 36... Qxe5 {[%clk 0:00:08.3]} 37. fxe5 {[%clk 0:00:15.3]}
37... Kf7 {[%clk 0:00:08.4]} 38. Rd2 {[%clk 0:00:14.9]} 38... d3 {[%clk
0:00:08.2]} 39. Kg2 {[%clk 0:00:15.3]} 39... Ke6 {[%clk 0:00:08.5]} 40. Kf2
{[%clk 0:00:15.9]} 40... Kxe5 {[%clk 0:00:07.9]} 41. Ke3 {[%clk 0:00:16.6]}
41... Kf5 {[%clk 0:00:07.7]} 42. a4 {[%clk 0:00:13.2]} 42... Ke5 {[%clk
0:00:06.3]} 43. a5 {[%clk 0:00:12.8]} 43... Rb5 {[%clk 0:00:04.8]} 44. Rxd3
{[%clk 0:00:12.6]} 44... Rxa5 {[%clk 0:00:04.8]} 45. Kd2 {[%clk 0:00:07.1]}
45... Ke4 {[%clk 0:00:02.3]} 46. Kc2 {[%clk 0:00:05.1]} 46... Rb5 {[%clk
0:00:02.1]} 47. Rc3 {[%clk 0:00:04.9]} 47... Rd5 {[%clk 0:00:02.1]} 48. b3
{[%clk 0:00:04.9]} 48... Rf5 {[%clk 0:00:01.9]} 49. Rc4+ {[%clk 0:00:05.1]}
49... Ke3 {[%clk 0:00:01.9]} 50. b4 {[%clk 0:00:05.1]} 50... Kf3 {[%clk
0:00:01.7]} 51. Rg4 {[%clk 0:00:05.1]} 51... Kg2 {[%clk 0:00:01.1]} 52. Kb3
{[%clk 0:00:03.5]} 52... Kxh3 {[%clk 0:00:01.2]} 53. Rf4 {[%clk 0:00:03.2]}
53... Rg5 {[%clk 0:00:01.4]} 54. g4 {[%clk 0:00:02.9]} 1-0

[Event "Late-Titled-Tuesday-Blitz-September-05-2023"]
[Site "Chess.com"]
[Date "2023.09.05"]
[Round "3"]
[White "NovikovaGalina"]
[Black "Mesa_1"]
[Result "0-1"]
[WhiteElo "2412"]
[BlackElo "2596"]
[TimeControl "180+1"]
[EndTime "14:29:48 PDT"]
[Termination "Mesa_1 won on time"]

1. e4 {[%clk 0:03:00.9]} 1... e5 {[%clk 0:02:57.6]} 2. Nf3 {[%clk 0:03:01.2]}
2... Nc6 {[%clk 0:02:58.3]} 3. d4 {[%clk 0:02:59.3]} 3... exd4 {[%clk
0:02:54.2]} 4. Nxd4 {[%clk 0:03:00.2]} 4... Bc5 {[%clk 0:02:51.3]} 5. Nb3 {[%clk
0:03:00]} 5... Bb6 {[%clk 0:02:49.4]} 6. Nc3 {[%clk 0:03:00.6]} 6... Qf6 {[%clk
0:02:49.4]} 7. Qe2 {[%clk 0:03:01]} 7... Nge7 {[%clk 0:02:49.3]} 8. Be3 {[%clk
0:03:01.4]} 8... d6 {[%clk 0:02:48.5]} 9. O-O-O {[%clk 0:03:01]} 9... Bd7 {[%clk
0:02:48.5]} 10. g3 {[%clk 0:03:00.6]} 10... O-O-O {[%clk 0:02:46.7]} 11. Bg2
{[%clk 0:03:01]} 11... h5 {[%clk 0:02:46.5]} 12. Bxb6 {[%clk 0:02:55.8]} 12...
axb6 {[%clk 0:02:45.1]} 13. Kb1 {[%clk 0:02:55.8]} 13... h4 {[%clk 0:02:43.6]}
14. f4 {[%clk 0:02:41]} 14... Kb8 {[%clk 0:02:09.5]} 15. Bf3 {[%clk 0:02:28.3]}
15... g5 {[%clk 0:01:39.6]} 16. Nd5 {[%clk 0:02:01.6]} 16... Nxd5 {[%clk
0:01:34]} 17. exd5 {[%clk 0:02:02.5]} 17... Ne7 {[%clk 0:01:31]} 18. Rhe1 {[%clk
0:01:59.8]} 18... Rde8 {[%clk 0:01:23.9]} 19. Qd2 {[%clk 0:01:48.6]} 19... hxg3
{[%clk 0:01:21.4]} 20. hxg3 {[%clk 0:01:48.1]} 20... Ng6 {[%clk 0:01:17.5]} 21.
Be4 {[%clk 0:01:38.4]} 21... gxf4 {[%clk 0:01:12.4]} 22. Bxg6 {[%clk 0:01:39]}
22... fxg6 {[%clk 0:01:09.5]} 23. gxf4 {[%clk 0:01:39.4]} 23... Ref8 {[%clk
0:01:03.6]} 24. Rf1 {[%clk 0:01:38.4]} 24... Rh5 {[%clk 0:00:54.6]} 25. Nd4
{[%clk 0:01:21.1]} 25... Rxd5 {[%clk 0:00:51.6]} 26. Qe3 {[%clk 0:01:17.6]}
26... Re8 {[%clk 0:00:30.1]} 27. Qc3 {[%clk 0:01:16.9]} 27... Qf7 {[%clk
0:00:23]} 28. b3 {[%clk 0:01:13.8]} 28... c5 {[%clk 0:00:21.1]} 29. Nf3 {[%clk
0:00:49.2]} 29... Rxd1+ {[%clk 0:00:21.2]} 30. Rxd1 {[%clk 0:00:50.1]} 30...
Qxf4 {[%clk 0:00:20.2]} 31. Nd2 {[%clk 0:00:46.3]} 31... d5 {[%clk 0:00:19]} 32.
Rf1 {[%clk 0:00:43.8]} 32... Qe5 {[%clk 0:00:17.4]} 33. Qd3 {[%clk 0:00:20.4]}
33... Bf5 {[%clk 0:00:17.4]} 34. Qb5 {[%clk 0:00:21.1]} 34... Rd8 {[%clk
0:00:16]} 35. Nf3 {[%clk 0:00:20.6]} 35... Qc7 {[%clk 0:00:16.5]} 36. Ng5 {[%clk
0:00:18.3]} 36... Bd7 {[%clk 0:00:16.7]} 37. Qe2 {[%clk 0:00:18.6]} 37... Bf5
{[%clk 0:00:16.9]} 38. Qf2 {[%clk 0:00:15.9]} 38... d4 {[%clk 0:00:16.8]} 39.
Re1 {[%clk 0:00:11.3]} 39... d3 {[%clk 0:00:16.8]} 40. cxd3 {[%clk 0:00:12.2]}
40... Rxd3 {[%clk 0:00:17]} 41. Kc1 {[%clk 0:00:10.1]} 41... Rd8 {[%clk
0:00:16]} 42. Ne6 {[%clk 0:00:08.3]} 42... Bxe6 {[%clk 0:00:15.5]} 43. Rxe6
{[%clk 0:00:09.2]} 43... Qd7 {[%clk 0:00:15.2]} 44. Qe2 {[%clk 0:00:08.2]} 44...
g5 {[%clk 0:00:12.7]} 45. Qe5+ {[%clk 0:00:08.6]} 45... Qc7 {[%clk 0:00:12.3]}
46. Qxc7+ {[%clk 0:00:07.9]} 46... Kxc7 {[%clk 0:00:13.2]} 47. Rg6 {[%clk
0:00:08.4]} 47... Rd5 {[%clk 0:00:13.4]} 48. Kc2 {[%clk 0:00:08.9]} 48... Rf5
{[%clk 0:00:13.5]} 49. Kc3 {[%clk 0:00:09.8]} 49... b5 {[%clk 0:00:13.2]} 50. a4
{[%clk 0:00:08.7]} 50... bxa4 {[%clk 0:00:12.1]} 51. Kc4 {[%clk 0:00:09.6]}
51... a3 {[%clk 0:00:11]} 52. Rg7+ {[%clk 0:00:08.4]} 52... Kc6 {[%clk
0:00:10.5]} 53. Rg6+ {[%clk 0:00:08]} 53... Kc7 {[%clk 0:00:11.2]} 54. Rg7+
{[%clk 0:00:08.4]} 54... Kb8 {[%clk 0:00:11.8]} 55. Kb5 {[%clk 0:00:04.7]} 55...
a2 {[%clk 0:00:11]} 56. Kb6 {[%clk 0:00:04.8]} 56... Rf6+ {[%clk 0:00:11.4]} 0-1

[Event "Late-Titled-Tuesday-Blitz-September-05-2023"]
[Site "Chess.com"]
[Date "2023.09.05"]
[Round "3"]
[White "Alohamora11"]
[Black "Mops_2004"]
[Result "1-0"]
[WhiteElo "2554"]
[BlackElo "2815"]
[TimeControl "180+1"]
[EndTime "14:29:51 PDT"]
[Termination "Alohamora11 won by resignation"]

1. e4 {[%clk 0:03:00.5]} 1... g6 {[%clk 0:03:00.6]} 2. d4 {[%clk 0:03:00.6]}
2... Bg7 {[%clk 0:03:01.3]} 3. Nc3 {[%clk 0:03:01.4]} 3... d6 {[%clk 0:03:01.7]}
4. f4 {[%clk 0:03:01.6]} 4... Nf6 {[%clk 0:03:01]} 5. Nf3 {[%clk 0:03:01.8]}
5... c5 {[%clk 0:03:01.2]} 6. Bb5+ {[%clk 0:02:58.7]} 6... Bd7 {[%clk 0:03:01]}
7. e5 {[%clk 0:02:59.4]} 7... Ng4 {[%clk 0:03:01.2]} 8. Bxd7+ {[%clk 0:02:56.3]}
8... Qxd7 {[%clk 0:03:01]} 9. d5 {[%clk 0:02:57]} 9... dxe5 {[%clk 0:03:00.4]}
10. h3 {[%clk 0:02:57.6]} 10... e4 {[%clk 0:03:01]} 11. hxg4 {[%clk 0:02:57.4]}
11... exf3 {[%clk 0:03:00.9]} 12. Qxf3 {[%clk 0:02:58.3]} 12... Na6 {[%clk
0:02:59.9]} 13. Bd2 {[%clk 0:02:57.8]} 13... Nc7 {[%clk 0:02:55.3]} 14. O-O-O
{[%clk 0:02:57.3]} 14... O-O-O {[%clk 0:02:47.4]} 15. f5 {[%clk 0:02:54.1]}
15... Be5 {[%clk 0:02:36.6]} 16. Bf4 {[%clk 0:02:43.6]} 16... Bxf4+ {[%clk
0:02:13.1]} 17. Qxf4 {[%clk 0:02:44.2]} 17... h5 {[%clk 0:01:58.8]} 18. fxg6
{[%clk 0:01:48.2]} 18... fxg6 {[%clk 0:01:59.7]} 19. gxh5 {[%clk 0:01:48.8]}
19... gxh5 {[%clk 0:01:59.5]} 20. Qe5 {[%clk 0:01:47.7]} 20... h4 {[%clk
0:01:54.5]} 21. Qe4 {[%clk 0:01:34.6]} 21... e6 {[%clk 0:00:59.6]} 22. dxe6
{[%clk 0:01:13.1]} 22... Qxe6 {[%clk 0:00:57.9]} 23. Rxd8+ {[%clk 0:01:11.2]}
23... Rxd8 {[%clk 0:00:55.5]} 24. Qxe6+ {[%clk 0:00:59.2]} 24... Nxe6 {[%clk
0:00:56.4]} 25. Rxh4 {[%clk 0:00:59.5]} 25... Rg8 {[%clk 0:00:56]} 26. g4 {[%clk
0:00:54.3]} 26... Kd7 {[%clk 0:00:52.9]} 27. Ne4 {[%clk 0:00:54]} 27... Rg7
{[%clk 0:00:40.6]} 28. Rh5 {[%clk 0:00:37.1]} 28... b6 {[%clk 0:00:39.9]} 29. g5
{[%clk 0:00:36.2]} 29... Kc6 {[%clk 0:00:37.6]} 30. c4 {[%clk 0:00:32]} 30...
Nf4 {[%clk 0:00:23.8]} 31. Rh6+ {[%clk 0:00:31.4]} 31... Kc7 {[%clk 0:00:24.3]}
32. Rf6 {[%clk 0:00:23.1]} 32... Nd3+ {[%clk 0:00:21.1]} 33. Kd2 {[%clk
0:00:23.2]} 33... Ne5 {[%clk 0:00:22]} 34. Kc3 {[%clk 0:00:20.1]} 34... Rd7
{[%clk 0:00:21]} 35. g6 {[%clk 0:00:17.6]} 35... Rg7 {[%clk 0:00:18.6]} 36. Re6
{[%clk 0:00:16.8]} 36... Nxg6 {[%clk 0:00:17.4]} 37. Nf6 {[%clk 0:00:17.1]}
37... Kb7 {[%clk 0:00:11.9]} 38. Ne8 {[%clk 0:00:16]} 38... Rg8 {[%clk
0:00:07.6]} 39. Nd6+ {[%clk 0:00:12.3]} 39... Kb8 {[%clk 0:00:07.2]} 40. b4
{[%clk 0:00:06.7]} 40... cxb4+ {[%clk 0:00:06.7]} 41. Kxb4 {[%clk 0:00:06.6]}
41... Nf4 {[%clk 0:00:06.1]} 42. Re7 {[%clk 0:00:06]} 42... Rd8 {[%clk 0:00:06]}
43. Nb5 {[%clk 0:00:05]} 43... a6 {[%clk 0:00:03.9]} 44. Nc7 {[%clk 0:00:04.6]}
44... a5+ {[%clk 0:00:01.5]} 45. Kb5 {[%clk 0:00:04.7]} 45... Rd2 {[%clk
0:00:02.4]} 46. Kxb6 {[%clk 0:00:02.8]} 46... Rb2+ {[%clk 0:00:03.1]} 47. Nb5
{[%clk 0:00:02.6]} 47... Kc8 {[%clk 0:00:03.7]} 48. Rc7+ {[%clk 0:00:01.4]}
48... Kd8 {[%clk 0:00:03.7]} 49. Rc5 {[%clk 0:00:01.5]} 49... Nd3 {[%clk
0:00:03.4]} 50. Rd5+ {[%clk 0:00:01.7]} 50... Ke7 {[%clk 0:00:04]} 51. Rxd3
{[%clk 0:00:02.5]} 51... Rxa2 {[%clk 0:00:04.9]} 52. c5 {[%clk 0:00:02.8]} 52...
a4 {[%clk 0:00:04.9]} 53. c6 {[%clk 0:00:03.1]} 53... Rb2 {[%clk 0:00:03.9]} 54.
c7 {[%clk 0:00:03.6]} 1-0